[Event "SixDays Budapest GM-B 10-2024"]
[Site "Budapest"]
[Date "2024.10.02"]
[Round "4.1"]
[White "Wagh Suyog"]
[Black "Tippa, Aswath Srisai"]
[Result "0-1"]
[ECO "D45"]
[WhiteElo "2341"]
[BlackElo "1648"]
[Annotator "RC"]
[PlyCount "72"]
[EventDate "2024.09.24"]
[EventType "tourn"]
[EventCountry "HUN"]
[SourceTitle "playchess.com"]
[Source "ChessBase"]
[SourceQuality "1"]
[TimeControl "5400+30"]

1. d4 Nf6 {[%emt 0:08:52]} 2. c4 {[%emt 0:00:08]} e6 {[%emt 0:00:14]} 3. Nf3 {[%emt 0:00:04]} d5 {[%emt 0:00:25]} 4. Nc3 {[%emt 0:00:12]} Nbd7 {[%emt 0:00:59]} 5. e3 {[%emt 0:11:24]} c6 {[%emt 0:00:19]} 6. Qc2 {[%emt 0:00:09]} Bd6 {[%emt 0:00:13]} 7. b3 {[%emt 0:00:11]} O-O {[%emt 0:00:13]} 8. Be2 {[%emt 0:00:21]} b6 {[%emt 0:00:24]} 9. O-O {[%emt 0:00:13]} Bb7 {[%emt 0:00:21]} 10. Bb2 {[%emt 0:00:08]} Qe7 {[%emt 0:00:13]} 11. a4 {[%emt 0:00:16]} a5 {[%emt 0:00:18]} 12. Rad1 {[%emt 0:04:10]} Rad8 {[%emt 0:00:36]} 13. Rfe1 {[%emt 0:01:49]} Rfe8 {[%emt 0:01:42]} 14. h3 {[%emt 0:10:42]} h6 {[%emt 0:09:16]} 15. Bd3 {[%emt 0:18:11]} Bb4 {[%emt 0:02:06]} 16. Re2 {[%emt 0:03:00]} c5 {[%emt 0:18:57]} 17. cxd5 {[%emt 0:05:22]} exd5 {[%emt 0:09:20]} 18. dxc5 {[%emt 0:09:21]} bxc5 {[%emt 0:00:19]} 19. Bb5 {[%emt 0:00:10]} Rf8 {[%emt 0:10:12]} 20. Qf5 {[%emt 0:05:34]} Qe6 {[%emt 0:05:09]} 21. Qc2 {[%emt 0:05:23]} Rc8 {[%emt 0:03:19]} 22. e4 {[%emt 0:06:48]} d4 {[%emt 0:03:49]} 23. Na2 {[%emt 0:02:54]} Ba6 {[%emt 0:03:51]} 24. Bxa6 {[%emt 0:09:45]} Qxa6 {[%emt 0:00:08]} 25. Nc1 {[%emt 0:00:32]} Rfe8 {[%emt 0:01:27]} 26. Nd3 {[%emt 0:00:20]} Qc6 {[%emt 0:11:11]} 27. Rc1 {[%emt 0:02:02]} Qb7 {[%emt 0:01:54]} 28. e5 {[%emt 0:03:32]} Nd5 {[%emt 0:00:17]} 29. Nd2 {[%emt 0:00:54]} Bxd2 {[%emt 0:02:34]} 30. Rxd2 {[%emt 0:00:35]} Rc6 {[%emt 0:03:16]} 31. Kh2 {[%emt 0:01:17]} Rg6 {[%emt 0:00:41]} 32. g3 {[%emt 0:00:01]} Nb4 {[%emt 0:00:54]} 33. Nxb4 {[%emt 0:00:05]} Nxe5 {[%emt 0:00:18]} 34. Rd3 {[%emt 0:00:29]} axb4 {[%emt 0:00:16]} 35. Qd1 {[%emt 0:01:16]} Rf6 {[%emt 0:00:11]} 36. Kg1 {[%emt 0:00:29]} Qe4 {[%emt 0:00:12]} 0-1

[Event "SixDays Budapest GM-B 10-2024"]
[Site "Budapest"]
[Date "2024.10.02"]
[Round "4.2"]
[White "Galyas, Miklos"]
[Black "Grover, Sahaj"]
[Result "1-0"]
[ECO "D02"]
[WhiteElo "2394"]
[BlackElo "2496"]
[Annotator "TA"]
[PlyCount "39"]
[EventDate "2024.09.24"]
[EventType "tourn"]
[EventCountry "HUN"]
[SourceTitle "playchess.com"]
[Source "ChessBase"]
[SourceQuality "1"]
[TimeControl "5400+30"]

{[%evp 11,39,0,0,0,3,11,0,0,8,0,52,44,86,109,118,108,113,115,218,208,331,329,364,349,345,350,339,285,377,385]} 1. d4 {[%emt 0:00:06]} d5 {[%emt 0:07:54]} 2. Nf3 {[%emt 0:00:09]} Nf6 {[%emt 0:00:05]} 3. g3 {[%emt 0:00:07]} g6 {[%emt 0:00:50]} 4. Bg2 {[%emt 0:00:07]} Bg7 {[%emt 0:00:04]} 5. O-O {[%emt 0:00:08]} O-O {[%emt 0:00:05]} 6. Bf4 {[%emt 0:00:28]} c5 {[%emt 0:01:52]} 7. dxc5 {[%emt 0:00:44]} Na6 {[%emt 0:00:06] [#]} 8. c4 $1 {[%emt 0:05:07]} Nxc5 {[%emt 0:01:11]} 9. cxd5 {[%emt 0:01:02] The position is equal.} Qxd5 {[%emt 0:13:52]} 10. Be5 {[%emt 0:12:59]} Qe6 {[%emt 0:11:33]} ({Black should try} 10... Bg4 $11 11. Qxd5 Nxd5 12. Bxg7 Kxg7) 11. Nc3 $14 {[%emt 0:01:21]} Qf5 {[%emt 0:01:09] [#]} 12. Rc1 $1 {[%emt 0:04:56]} Ncd7 {[%emt 0:01:53] [#]} 13. e4 $1 {[%emt 0:07:04][%cal Be2e4,Be4e5][%mdl 544] White is more active.} Qh5 {[%emt 0:00:30]} 14. Bc7 {[%emt 0:02:12]} Kh8 {[%emt 0:05:34]} (14... Ne8 $16 15. Bd8 (15. Nd5 Nxc7 16. Nxe7+ Kh8 $16) 15... Ne5) 15. h3 $18 {[%emt 0:08:51] e5 would now be deadly.} Nb6 {[%emt 0:04:56]} (15... Nc5 {might work better.}) 16. e5 {[%emt 0:04:00]} Ng8 {[%emt 0:18:25]} 17. g4 {[%emt 0:03:23]} Bxg4 {[%emt 0:00:06]} 18. hxg4 {[%emt 0:00:10]} Qxg4 {[%emt 0:00:02]} 19. Qd4 {[%emt 0:08:56]} Qe6 {[%emt 0:00:14]} 20. Ng5 {[%emt 0:03:34][%csl LRb7,LRe6] Black did not feel at home in the position after the opening.   Weighted Error Value: White=0.07 (flawless) /Black=0.40.  Mistake:       	---       	Black=3      Inaccurate:     	---       	Black=2      OK:         	White=7     	Black=4      Best:        	White=2     	---        Strong:       	White=1     	---} 1-0

[Event "SixDays Budapest GM-B 10-2024"]
[Site "Budapest"]
[Date "2024.10.02"]
[Round "4.3"]
[White "Vinter-Schou, Uffe"]
[Black "Kovalev, Andrei"]
[Result "0-1"]
[ECO "B51"]
[WhiteElo "2307"]
[BlackElo "2412"]
[Annotator "TA"]
[PlyCount "74"]
[EventDate "2024.09.24"]
[EventType "tourn"]
[EventCountry "HUN"]
[SourceTitle "playchess.com"]
[Source "ChessBase"]
[SourceQuality "1"]
[TimeControl "5400+30"]

{[%evp 9,74,4,9,13,6,0,1,12,7,16,10,4,0,-31,-39,-37,-43,-33,-52,-38,0,0,0,-20,-19,-27,0,-61,-71,-75,-29,-76,-62,-141,-72,-99,-60,-72,0,0,19,7,4,0,27,0,-2,-83,-74,-119,-81,-55,-86,-180,-193,-193,-189,-243,-248,-247,-238,-266,-277,-1576,-1643,-29987,-29988]} 1. e4 {[%emt 0:06:05]} c5 {[%emt 0:00:12]} 2. Nf3 {[%emt 0:00:20]} d6 {[%emt 0:01:08]} 3. Bb5+ {[%emt 0:02:47]} Nd7 {[%emt 0:00:53]} 4. c4 {[%emt 0:04:09]} Ngf6 {[%emt 0:03:08]} 5. Nc3 {[%emt 0:00:06]} g6 {[%emt 0:05:07]} 6. O-O {[%emt 0:00:15]} Bg7 {[%emt 0:00:06]} 7. d4 {[%emt 0:10:33]} cxd4 {[%emt 0:01:59]} 8. Nxd4 {[%emt 0:00:02] The position is equal.} O-O {[%emt 0:00:11]} 9. Bxd7 {[%emt 0:00:20]} Bxd7 {[%emt 0:16:05]} 10. b3 {[%emt 0:00:10]} a6 {[%emt 0:00:04][%cal Ob7b5]} 11. Bb2 {[%emt 0:03:36] [#]} b5 $1 {[%emt 0:04:08]} 12. cxb5 {[%emt 0:06:47]} (12. Qd3 bxc4) 12... axb5 {[%emt 0:01:02]} 13. Qe2 {[%emt 0:14:26][%cal Of1c1]} b4 {[%emt 0:12:19]} 14. Nd5 {[%emt 0:00:22]} e6 {[%emt 0:07:55]} 15. Nxb4 {[%emt 0:04:04]} Qb6 {[%emt 0:00:14] Repels Ndc6} 16. Nd3 {[%emt 0:09:42]} e5 {[%emt 0:03:02]} 17. Nc2 {[%emt 0:00:12]} Bc6 {[%emt 0:01:44]} 18. Ne3 {[%emt 0:03:50]} (18. Qe3 $1 $11 Qxe3 19. Nxe3 Bxe4 (19... Nxe4 20. Rfc1 $11) 20. Nb4) 18... Bxe4 $15 {[%emt 0:03:07] Black is more active.} 19. Nc4 {[%emt 0:04:26]} Qb8 {[%emt 0:07:35]} (19... Qb5 $17) 20. Rfd1 {[%emt 0:08:40]} (20. f4 $1 $11 {feels stronger.}) 20... Re8 $17 {[%emt 0:03:16]} 21. f3 {[%emt 0:07:29]} (21. a3 $15) 21... Bc6 {[%emt 0:03:45]} ({Black should play} 21... Bxd3 22. Qxd3 (22. Rxd3 $2 d5 $19) 22... d5) 22. Nf2 {[%emt 0:04:27]} d5 {[%emt 0:04:58]} 23. Nxe5 {[%emt 0:05:28] [#]} Nh5 {[%emt 0:03:38]} (23... Bb5 $1 $17 {[%cal Rb5e2]} 24. Qe3 d4 (24... Nd7 25. f4 $11) 25. Qxd4 (25. Rxd4 $2 Rxe5 $19) 25... Nd7) 24. Qc2 $11 {[%emt 0:01:36]} Bb5 {[%emt 0:08:04] This pair of bishops is nice.} 25. Ned3 {[%emt 0:00:02]} d4 {[%emt 0:00:07]} 26. a4 {[%emt 0:01:20]} Rc8 {[%emt 0:00:25]} 27. Qd2 {[%emt 0:00:08]} (27. Nc5 {is interesting.} d3 28. Qb1 Bxb2 29. Qxb2 Rxc5 30. axb5 Rxa1 31. Qxa1 Rxb5 32. Ng4) 27... Bxd3 {[%emt 0:00:20]} 28. Qxd3 {[%emt 0:00:32]} (28. Nxd3 $11 Qxb3 29. Rdc1) 28... Nf4 $17 {[%emt 0:00:04]} 29. Qb5 {[%emt 0:01:19]} Rc2 {[%emt 0:02:55]} 30. Qxb8+ {[%emt 0:01:41]} (30. Bxd4 $2 Bxd4 (30... Ne2+ $2 31. Kf1 $19) 31. Qxb8+ Rxb8 32. Rxd4 Ne2+ 33. Kf1 Nxd4 $19) 30... Rxb8 {[%emt 0:00:07]} 31. Bc1 {[%emt 0:00:33]} (31. Rab1 $17) 31... Ne2+ $19 {[%emt 0:00:50]} 32. Kf1 {[%emt 0:00:08]} d3 $1 $36 {[%emt 0:00:29][%mdl 2048] Keeping White busy.} ({Don't take} 32... Rxb3 33. Bg5) (32... Nxc1 33. Rdxc1 Rxc1+ 34. Rxc1 Rxb3 35. Ra1) 33. Rb1 {[%emt 0:00:31]} (33. Bg5 {is a better defense.}) 33... Nc3 $1 {[%emt 0:00:54][%csl LRb1,LRd1]} ({And not} 33... Nxc1 34. Rbxc1 Rxb3 35. Rb1 $11) 34. Bf4 {[%emt 0:00:05]} Nxd1 {[%emt 0:01:58]} 35. Nxd1 {[%emt 0:01:12]} Re8 {[%emt 0:01:29] aiming for ...Bd4.} 36. b4 $2 {[%emt 0:00:34]} (36. Ne3 Re2 37. Re1) 36... Bd4 {[%emt 0:01:15] White must now prevent ...Ree2.} 37. Bg3 {[%emt 0:00:31]} d2 {[%emt 0:00:32] Weighted Error Value: White=0.60/Black=0.14 (very precise) .  Mistake:       	White=7     	Black=3      Inaccurate:     	White=5     	Black=4      OK:         	White=9     	Black=15     Best:        	White=2     	Black=5} 0-1

[Event "SixDays Budapest GM-B 10-2024"]
[Site "Budapest"]
[Date "2024.10.02"]
[Round "4.4"]
[White "Boyer, Mahel"]
[Black "Wu, Yixing"]
[Result "1-0"]
[ECO "D94"]
[WhiteElo "2489"]
[BlackElo "2324"]
[Annotator "TA"]
[PlyCount "103"]
[EventDate "2024.09.24"]
[EventType "tourn"]
[EventCountry "HUN"]
[SourceTitle "playchess.com"]
[Source "ChessBase"]
[SourceQuality "1"]
[TimeControl "5400+30"]

{[%evp 21,103,0,0,0,0,0,0,0,22,20,58,12,17,14,19,15,0,27,104,136,214,157,331,342,376,377,369,163,166,148,127,136,114,93,103,107,97,113,99,105,93,66,58,55,57,49,296,270,261,81,109,64,238,191,350,359,307,175,366,270,608,660,640,608,670,670,1038,1109,1647,1563,1717,1602,2590,2240,2615,2199,29976,29977,29975,29977,29985,29986,29986,29987]} 1. d4 {[%emt 0:06:50]} Nf6 {[%emt 0:00:12]} 2. c4 {[%emt 0:00:18]} g6 {[%emt 0:00:24]} 3. Nc3 {[%emt 0:02:04]} d5 {[%emt 0:00:06]} 4. Nf3 {[%emt 0:01:08]} Bg7 {[%emt 0:00:17]} 5. e3 {[%emt 0:00:28][%cal Be2e3,Be3d4,Bd4d5][%mdl 32]} O-O {[%emt 0:02:21]} 6. cxd5 {[%emt 0:00:05]} Nxd5 {[%emt 0:00:17]} 7. Bc4 {[%emt 0:00:15]} Nb6 {[%emt 0:02:58]} 8. Bb3 {[%emt 0:00:08]} c5 {[%emt 0:00:13]} 9. O-O {[%emt 0:00:06]} cxd4 {[%emt 0:01:44]} 10. exd4 {[%emt 0:00:04]} Nc6 {[%emt 0:05:10]} 11. d5 {[%emt 0:00:04]} Na5 {[%emt 0:00:14]} 12. h3 {[%emt 0:00:03]} Nxb3 {[%emt 0:02:45]} 13. axb3 {[%emt 0:00:08]} Bxc3 {[%emt 0:03:07]} 14. bxc3 {[%emt 0:00:05] c4 would now be deadly. The position is equal.} Qxd5 {[%emt 0:00:32]} 15. Bd2 {[%emt 0:07:17]} Bf5 {[%emt 0:24:49]} 16. Re1 {[%emt 0:09:49]} (16. c4 $14 {is more appropriate.} Qd7 17. Re1) 16... Be4 $11 {[%emt 0:05:50]} 17. Ng5 {[%emt 0:00:43]} Bxg2 {[%emt 0:01:32]} 18. c4 $1 {[%emt 0:00:11]} (18. Rxe7 Bh1 19. Qg4 Qxd2 $17) 18... Qc6 {[%emt 0:00:40]} 19. Qg4 {[%emt 0:00:17]} h6 {[%emt 0:13:00]} (19... Rad8 $11 {keeps the balance.} 20. Qxg2 Rxd2) 20. Ne6 $36 {[%emt 0:05:42][%mdl 3072] White has strong compensation. Keeping Black busy.} (20. Rxe7 $6 Qf6 21. Ree1 Bc6 $11) 20... h5 {[%emt 0:06:49]} (20... Bf3 $16 21. Qg3 Rfd8 22. Nxd8 Rxd8) 21. Qg3 {[%emt 0:09:16]} (21. Qxg2 Qxg2+ 22. Kxg2 fxe6 $11) 21... Rfc8 {[%emt 0:00:05]} (21... Rfe8 $16 22. Re3 (22. Qxg2 Qxg2+ 23. Kxg2 fxe6 $11) 22... Qd6) 22. Ng5 $18 {[%emt 0:16:21][%cal Oe1e7]} (22. Qxg2 Qxg2+ 23. Kxg2 fxe6 $11) 22... Bh1 {[%emt 0:19:43]} 23. f3 {[%emt 0:10:19]} (23. Rxe7 Rf8 24. Bc3 h4 $18) 23... Rd8 {[%emt 0:01:21]} 24. Re2 {[%emt 0:01:29]} (24. Kxh1 $142 Nc8 (24... Rxd2 $2 25. Qf4 $18) 25. Bb4) 24... Bxf3 {[%emt 0:00:39]} (24... Qf6 25. Rae1) 25. Qxf3 {[%emt 0:02:18]} Qxf3 {[%emt 0:02:09]} 26. Nxf3 {[%emt 0:00:03]} Nc8 {[%emt 0:02:29]} 27. Be3 {[%emt 0:07:11]} f6 {[%emt 0:00:34]} 28. Nd4 {[%emt 0:00:06]} Kf7 {[%emt 0:01:24] [#]} 29. Ne6 $1 {[%emt 0:07:49]} Rd6 {[%emt 0:00:20]} (29... Kxe6 $2 30. Bb6+ Kd7 31. Rd2+ Nd6 32. Bxd8 Rxd8 (32... Kxd8 $2 33. c5 $18) 33. c5 $18 (33. Rxa7 Kc6 $11)) 30. Nc7 {[%emt 0:00:29]} Rb8 {[%emt 0:00:01]} 31. Bxa7 {[%emt 0:00:26] White is much more active. The black rooks are passive.} Nxa7 {[%emt 0:00:06]} 32. Rxa7 {[%emt 0:00:03]} Rd3 {[%emt 0:00:54][%csl LRb3,LRh3]} 33. b4 {[%emt 0:00:39] Threatens to win with Kg2.} e5 $2 {[%emt 0:03:11]} (33... Rxh3 $14 34. Nd5 e5) 34. Na6 {[%emt 0:01:39]} Ra3 {[%emt 0:00:31]} 35. Nxb8 {[%emt 0:02:34]} (35. b5 $18 {and the rest is easy.}) 35... Rxa7 {[%emt 0:00:01][%mdl 4096] Endgame. KRN-KR} 36. Rd2 {[%emt 0:00:06] Hoping for c5.} Ke6 $2 {[%emt 0:01:18]} (36... e4 $14) 37. c5 {[%emt 0:00:13]} Ra4 $2 {[%emt 0:00:34]} (37... Ra1+ 38. Kg2 e4 39. Rd6+ Kf5) 38. Rd6+ {[%emt 0:04:23]} Kf5 {[%emt 0:00:01]} 39. Rb6 {[%emt 0:00:04]} (39. b5 $142) 39... e4 $2 {[%emt 0:00:19]} (39... Ke4 40. Rxf6 (40. Rxb7 Kf3 $11) 40... Rxb4 41. Rxg6 Rb1+ 42. Kg2 Kf5) 40. Kf2 {[%emt 0:02:56][%cal Of2e3] Strongly threatening Ke3!} Ra2+ $2 {[%emt 0:00:44]} (40... g5 41. Ke3 (41. Rxb7 Kf4 $16) 41... Ra3+ 42. Kd4 g4 43. hxg4+ (43. Rxb7 gxh3 44. c6 h2 $11) 43... hxg4 44. Rxb7 Kf4) 41. Ke3 {[%emt 0:00:01]} Ra3+ {[%emt 0:00:09]} 42. Kd4 {[%emt 0:00:03]} Rd3+ {[%emt 0:01:14]} 43. Kc4 {[%emt 0:00:01]} Rd8 {[%emt 0:00:40]} 44. Rxb7 {[%emt 0:00:03]} e3 {[%emt 0:00:31] [#]} 45. Re7 $1 {[%emt 0:01:52]} Rxb8 {[%emt 0:00:04]} 46. Rxe3 {[%emt 0:00:22] KR-KR} g5 {[%emt 0:00:26]} 47. c6 {[%emt 0:00:13][%cal Bc5c6,Bc6c7][%mdl 32]} g4 {[%emt 0:00:33]} 48. hxg4+ {[%emt 0:00:07]} hxg4 {[%emt 0:00:00][%cal Bh5g4,Bg4g3][%mdl 32]} 49. b5 {[%emt 0:00:05][%cal Bb4b5,Bb5b6][%mdl 32] White mates.} Kf4 {[%emt 0:00:45]} 50. c7 {[%emt 0:01:56]} Rg8 {[%emt 0:00:48]} 51. Re1 {[%emt 0:00:24]} g3 {[%emt 0:00:21]} 52. b6 {[%emt 0:00:02] Weighted Error Value: White=0.32/Black=0.69.  Loses game:     	---       	Black=3      Missed win:     	White=1     	---        Mistake:       	White=3     	Black=5      Inaccurate:     	---       	Black=1      OK:         	White=10    	Black=11     Best:        	White=2     	Black=3      Strong:       	White=1     	---} 1-0

[Event "SixDays Budapest GM-B 10-2024"]
[Site "Budapest"]
[Date "2024.10.02"]
[Round "4.5"]
[White "Xie, Felix"]
[Black "Lee, Junhyeok"]
[Result "0-1"]
[ECO "A05"]
[WhiteElo "2320"]
[BlackElo "2364"]
[Annotator "TA"]
[PlyCount "90"]
[EventDate "2024.09.24"]
[EventType "tourn"]
[EventCountry "HUN"]
[SourceTitle "playchess.com"]
[Source "ChessBase"]
[SourceQuality "1"]
[TimeControl "5400+30"]

{[%evp 13,90,7,11,5,9,12,16,4,8,0,8,0,28,8,14,13,35,48,32,19,52,45,49,46,63,48,39,25,35,0,48,-10,-17,-42,-22,-65,-66,-58,-40,-57,-49,-225,-218,-218,-208,-299,-268,-420,-402,-427,-277,-275,-267,-281,-249,-251,-41,-58,-79,-79,-7,-7,0,-23,-22,-760,-85,-818,-801,-29983,-29984,-29984,-29985,-29993,-29986,-29995,-29994,-29994,-1368]} 1. Nf3 {[%emt 0:00:28]} Nf6 {[%emt 0:04:59]} 2. b3 {[%emt 0:00:38]} g6 {[%emt 0:03:59]} 3. Bb2 {[%emt 0:00:21]} Bg7 {[%emt 0:00:11]} 4. g3 {[%emt 0:00:25]} b6 {[%emt 0:02:46]} 5. Bg2 {[%emt 0:00:13]} Bb7 {[%emt 0:00:02]} 6. O-O {[%emt 0:00:19]} O-O {[%emt 0:00:06]} 7. c4 {[%emt 0:00:21]} e6 {[%emt 0:00:23]} 8. d4 {[%emt 0:00:50]} Qe7 {[%emt 0:00:46]} 9. Nc3 {[%emt 0:01:34]} d5 {[%emt 0:03:11]} 10. cxd5 {[%emt 0:01:39] The position is equal.} exd5 {[%emt 0:00:22]} 11. Rc1 {[%emt 0:04:27]} Na6 {[%emt 0:01:46]} 12. e3 {[%emt 0:03:59]} c5 {[%emt 0:01:52]} 13. Nb5 {[%emt 0:10:14]} Rfd8 {[%emt 0:06:26]} 14. Qe2 {[%emt 0:03:27]} Nb8 {[%emt 0:07:21]} 15. Rfd1 {[%emt 0:07:15]} Nbd7 {[%emt 0:01:52]} 16. Nc3 {[%emt 0:02:48]} Nf8 {[%emt 0:03:31]} 17. Ba3 {[%emt 0:12:16]} Ne6 {[%emt 0:01:35]} 18. dxc5 {[%emt 0:05:15]} bxc5 {[%emt 0:00:09]} 19. Na4 {[%emt 0:00:17]} Rac8 {[%emt 0:04:33]} 20. Rc2 {[%emt 0:08:08]} Rc7 {[%emt 0:17:47]} 21. Rdc1 {[%emt 0:08:31]} Rdc8 {[%emt 0:00:46]} (21... Ne4 $11 {might be stronger.}) 22. Qb5 {[%emt 0:02:42]} ({Better is} 22. Bh3 $14) 22... Ne4 $11 {[%emt 0:04:49]} 23. Rd1 {[%emt 0:08:37]} Qd8 {[%emt 0:09:12]} 24. Bb2 {[%emt 0:05:03]} (24. Nd2 {is more complex.} Bc6 25. Qa6 Nxf2 26. Kxf2 d4 27. Ne4) 24... Bxb2 {[%emt 0:03:47]} 25. Nxb2 {[%emt 0:01:07]} d4 {[%emt 0:01:21]} (25... Qf6 $5 26. Qd3 d4 $15) 26. Na4 {[%emt 0:05:16] Against Nc3} Nd6 {[%emt 0:11:32]} 27. Qa5 {[%emt 0:01:08]} (27. Qe2 $15) 27... Qf6 $19 {[%emt 0:00:46]} 28. Ne1 {[%emt 0:00:41]} Bxg2 {[%emt 0:00:32]} 29. Nxg2 {[%emt 0:00:28]} (29. Kxg2 {is a better defense.} c4 30. Nf3) 29... Qf5 {[%emt 0:01:10]} 30. Rb2 {[%emt 0:02:56]} (30. Qd2 $142 Ng5 31. Nh4) 30... Ng5 {[%emt 0:01:07]} 31. Nf4 {[%emt 0:00:42]} Qe4 {[%emt 0:00:59] ...Nf3+ would now be deadly.} 32. exd4 {[%emt 0:00:37][%cal Ra4c5]} Nf3+ {[%emt 0:00:30]} 33. Kg2 {[%emt 0:00:36]} Nxd4+ {[%emt 0:01:36]} ({Stronger than} 33... cxd4 34. Re2 Nh4+ 35. Kh3 Qf5+ 36. Qxf5 Nhxf5 37. g4 $16) 34. Kg1 {[%emt 0:00:04]} N6b5 {[%emt 0:02:36]} (34... Qa8 $19 {Threatens to win with ...N6f5.} 35. Nc3 Rd7) 35. Nc3 $15 {[%emt 0:00:50]} Nxc3 {[%emt 0:00:41]} 36. Qxc3 {[%emt 0:00:01]} Rd7 {[%emt 0:00:30] Black is more active.} (36... g5 $17 37. Nh5 Rc6) 37. Rd3 $11 {[%emt 0:01:32]} Rcd8 {[%emt 0:02:31]} 38. Re3 {[%emt 0:00:39]} Qc6 {[%emt 0:00:26] Strongly threatening ...Nb5.} 39. h4 $2 {[%emt 0:02:07][%mdl 8192] [#]} (39. f3 $11) 39... h6 $2 {[%emt 0:00:18]} (39... Nb5 $1 $19 {[%cal Rb5c3] and Black stays clearly on top.} 40. Qd3 Rxd3 41. Nxd3 Nd4) 40. Nh3 $2 {[%emt 0:01:06][%mdl 8192]} (40. Rb1 $17) 40... Nb5 $19 {[%emt 0:01:05]} 41. Qe5 {[%emt 0:00:25]} Rd1+ {[%emt 0:00:24] Black mates.} 42. Re1 {[%emt 0:00:01] [#]} Nd4 $1 {[%emt 0:00:14]} 43. Kf1 {[%emt 0:01:09]} (43. Rbe2 Nf3+) 43... Nf3 {[%emt 0:00:32]} 44. Rxd1 {[%emt 0:00:43]} Rxd1+ {[%emt 0:00:05]} 45. Ke2 {[%emt 0:00:02]} Re1+ {[%emt 0:00:10] Weighted Error Value: White=0.73/Black=0.37.  Loses game:     	White=3     	---        Missed win:     	---       	Black=2      Mistake:       	White=3     	Black=2      Inaccurate:     	White=3     	Black=3      OK:         	White=6     	Black=8      Best:        	White=3     	Black=3} 0-1